Cogmind - Beta 13 @@@ ROGUE MODE // 2024.06.09 @ 22:34:05 Player: annull Result: Destroyed by D-53 Grenadier with Mini Grenade Launcher Performance ------------- Evolutions (0) 0 Regions Visited (2) 400 Robots Destroyed (9) 45 Value Destroyed (226) 226 Prototype IDs (0) 0 Alien Tech Used (0) 0 Bonus (-17) -17 TOTAL SCORE: 654 Bonus ------- Follower Combat Kills 60 Friendly Fire -77 Cogmind --------- Core Integrity 0/250 Matter 75/450 Energy 90/100 System Corruption 0% Temperature Cool (0) Movement Core (100) Ox1 Location -10/Mines Parts ------- > --- POWER (1) -------- (None) > --- PROPULSION (2) --- (None) > --- UTILITY (2) ------ Large Matter Pod Targeting Computer > --- WEAPON (2) ------- Grenade Launcher > --- INVENTORY (5) ---- Aluminum Leg Wheel Large Matter Pod (0) Peak State ------------ > --- POWER ------------ Light Ion Engine > --- PROPULSION ------- Wheel Wheel > --- UTILITY ---------- Large Matter Pod Large Matter Pod > --- WEAPON ----------- Grenade Launcher Grenade Launcher > --- INVENTORY -------- Aluminum Leg Wheel Wheel [Rating: 7] Favorites ----------- Power Light Ion Engine Engine Light Ion Engine Propulsion Wheel Leg Aluminum Leg Wheel Wheel Utility Large Matter Pod Storage Large Matter Pod Processor Targeting Computer Weapon Grenade Launcher Ballistic Gun Assault Rifle Launcher Grenade Launcher Build | -11 -10 -10 ------- Run | Yrd Mat Min Slots Evolved . | . . . Power . | . . . Propulsion . | . . . Utility . | . . . Weapon . | . . . Parts Attached 18 | 7 10 1 Power 1 | 1 . . Engine 1 | 1 . . Core . | . . . Reactor . | . . . Propulsion 7 | 4 3 . Treads . | . . . Leg 2 | 2 . . Wheel 5 | 2 3 . Hover . | . . . Flight . | . . . Utility 3 | . 3 . Device . | . . . Storage 2 | . 2 . Processor 1 | . 1 . Hackware . | . . . Protection . | . . . Artifact . | . . . Weapon 7 | 2 4 1 Energy Gun . | . . . Energy Cannon . | . . . Ballistic Gun 2 | 2 . . Ballistic Cannon . | . . . Launcher 5 | . 4 1 Special Weapon . | . . . Impact Weapon . | . . . Slashing Weapon . | . . . Piercing Weapon . | . . . Special Melee Weapon . | . . . Unidentified Prototypes . | . . . Parts Lost 7 | . 2 5 Power 1 | . . 1 Propulsion 3 | . 1 2 Utility . | . . . Weapon 3 | . 1 2 Highest Loss Streak 4 | . 2 4 To Critical Strikes . | . . . Average Slot Usage (%) 91 | . 94 84 Engine 13 | . 14 11 Leg 2 | . 3 . Wheel 21 | . 23 16 Storage 18 | . 20 14 Processor 6 | . 3 14 Ballistic Gun 2 | . 3 . Launcher 24 | . 23 26 Naked Turns . | . . . Heaviest Build 15 | 6 15 12 Greatest Support 20 | 20 20 20 Greatest Overweight (x) 1 | . 1 1 Average Overweight (x) . | . . . Largest Inventory Capacity 5 | 5 5 5 Average Capacity 5 | 5 5 5 Most Carried 5 | 4 5 4 Average Carried 3 | 1 4 3 Final Capacity 5 | 5 5 5 Final Carried 4 | 3 4 3 Class Distribution -------------------- 100% | Mutant Dominant Class ---------------- Mutant | -10/Materials Mutant | -10/Mines Resources | -11 -10 -10 ----------- Run | Yrd Mat Min Matter Collected 457 | 243 111 103 Remotely . | . . . Salvage Created 190 | 48 45 97 Parts 19 | 1 10 8 Haulers Intercepted . | . . . Recyclers Shooed . | . . . Parts Field Recycled . | . . . Retrieved Matter . | . . . Parts Self-Destructed . | . . . Prevented . | . . . Kills | -11 -10 -10 ------- Run | Yrd Mat Min Combat Hostiles Destroyed 13 | 1 2 10 Guns 1 | 1 . . AOE 12 | . 2 10 Classes Destroyed 5 | 1 2 2 Worker 2 | . 2 . Builder 1 | . . 1 Watcher 1 | . 1 . Grunt 5 | 1 2 2 Assembled 8 | . . 8 Best Kill Streak 9 | 1 3 9 Combat Bots Only 8 | 1 2 8 Max Kills in Single Turn 5 | 1 2 5 Gunslinging . | . . . Exploded 5 | . 1 5 Melee . | . . . Uniques/NPCs Destroyed . | . . . Combat | -11 -10 -10 -------- Run | Yrd Mat Min Hostile Shots Fired 56 | 12 16 28 Missed 17 | 3 6 8 Damage Taken 757 | 99 212 446 Core 266 | 22 32 212 Absorbed by Shields . | . . . Core Remaining (%) 91 | 91 . . Volleys Fired 26 | 7 11 8 Largest 2 | 2 2 2 Hottest 60 | 40 60 60 Shots Fired 47 | 14 18 15 Gun 16 | 14 2 . Cannon . | . . . Launcher 31 | . 16 15 Special . | . . . Kinetic 16 | 14 2 . Thermal . | . . . Explosive 31 | . 16 15 Electromagnetic . | . . . Robot Hit Streak 12 | 8 12 5 Robot Miss Streak 2 | 2 2 1 Penetration Max . | . . . Secondary Targets . | . . . Shots Hit Robots 22 | 11 4 7 Core Hits 40 | 2 6 32 Critical Kills . | . . . Critical Parts Destroyed . | . . . Critical Strikes . | . . . Melee Attacks . | . . . Impact . | . . . Slashing . | . . . Piercing . | . . . Sneak Attacks . | . . . Combat Hostiles . | . . . Follow-up Attacks . | . . . Damage Inflicted 1599 | 111 430 1058 Guns 126 | 111 15 . Cannons . | . . . Explosions 1473 | . 415 1058 Melee . | . . . Ramming . | . . . Kinetic 126 | 111 15 . Thermal . | . . . Explosive 1473 | . 415 1058 Electromagnetic . | . . . Impact . | . . . Slashing . | . . . Piercing . | . . . Highest Corruption . | . . . Average Corruption . | . . . Corruption Purged . | . . . Corruption Blocked . | . . . Overload Shots . | . . . Overflow Damage 9 | . . 9 Projectiles . | . . . Explosions 9 | . . 9 Melee . | . . . Knockbacks . | . . . Impact . | . . . Kinetic . | . . . Secondary . | . . . Self-Inflicted Damage 123 | . 90 33 Shots 6 | . 4 2 Rammed 1 | . 1 . Targets Rammed 1 | . 1 . Kicked . | . . . Crushed . | . . . Highest Temperature 21 | 6 9 21 Average Temperature 8 | 6 6 12 Received Heat Transfer 194 | 54 69 71 Siege Activations . | . . . Robots Corrupted . | . . . Combat Hostiles . | . . . Parts Fried . | . . . Impact Corruptions . | . . . Robots Melted . | . . . Combat Hostiles . | . . . Parts Melted . | . . . Heat Transferred . | . . . Parts Sabotaged . | . . . Parts Stolen . | . . . Parts Stripped . | . . . Power Chain Reactions . | . . . Alert | -11 -10 -10 ------- Run | Yrd Mat Min Peak Influence 201 | 20 180 201 Initial 70 | . 13 70 Average 88 | 1 89 153 Maximum Alert Level 1 | . . 1 Low Security (%) 98 | 100 100 93 Level 1 1 | . . 6 Level 2 . | . . . Level 3 . | . . . Level 4 . | . . . Level 5 . | . . . High Security . | . . . Max Security . | . . . Squads Dispatched 2 | . 1 1 Investigation . | . . . Extermination . | . . . Reinforcement 1 | . 1 . Assault 1 | . . 1 Garrison . | . . . Intercept . | . . . Searches Triggered . | . . . Construction Impeded . | . . . Haulers Reinforced . | . . . Active Scanning Responses . | . . . Cargo Convoy Interrupts . | . . . Stealth | -11 -10 -10 --------- Run | Yrd Mat Min Distress Signals 2 | . 1 1 Communications Jammed . | . . . Distress Signals . | . . . Times Spotted 30 | 1 6 23 Peak Tracking Total 9 | 1 3 9 Tactical Retreats . | . . . Traps | -11 -10 -10 ------- Run | Yrd Mat Min Traps Triggered . | . . . Indirectly . | . . . Trap Hack Attempts . | . . . Triggered . | . . . Disarmed . | . . . Reprogrammed . | . . . Reused . | . . . Traps Extracted . | . . . Installed . | . . . Triggered . | . . . Machines | -11 -10 -10 ---------- Run | Yrd Mat Min Machines Disabled 2 | . 1 1 Max in Single Turn 1 | . 1 1 Machines Repaired . | . . . Machines Dismantled . | . . . Machines Sabotaged . | . . . Overloaded Fab Kills . | . . . Hacking | -11 -10 -10 --------- Run | Yrd Mat Min Machines Accessed 1 | . 1 . Terminals 1 | . 1 . Fabricators . | . . . Repair Stations . | . . . Recycling Units . | . . . Scanalyzers . | . . . Garrison Access . | . . . Total Hacks 2 | . 2 . Successful 1 | . 1 . Failed 1 | . 1 . Catastrophic . | . . . Database Lockouts . | . . . Manual . | . . . Terminals 2 | . 2 . Fabricators . | . . . Repair Stations . | . . . Recycling Units . | . . . Scanalyzers . | . . . Garrison Access . | . . . Terminal Hacks 1 | . 1 . Zone Layout 1 | . 1 . Fabricator Hacks . | . . . Repair Station Hacks . | . . . Recycling Unit Hacks . | . . . Scanalyzer . | . . . Garrison Access Hacks . | . . . Unauthorized Hacks . | . . . Terminals . | . . . Fabricators . | . . . Repair Stations . | . . . Recycling Units . | . . . Scanalyzers . | . . . Garrison Access . | . . . Data Cores Recovered . | . . . Used . | . . . Hacking Detections 1 | . 1 . Full Trace Events . | . . . Feedback Events . | . . . Feedback Blocked . | . . . Robot Schematics Acquired . | . . . Robots Built . | . . . Authchips . | . . . Time . | . . . Total Robot Build Rating . | . . . Part Schematics Acquired . | . . . Parts Built . | . . . Authchips . | . . . Time . | . . . Total Part Build Rating . | . . . Parts Repaired . | . . . Time . | . . . Parts Recycled . | . . . Recycled Matter . | . . . Retrieved Matter . | . . . Retrieved Components . | . . . Parts Scanalyzed . | . . . Part Schematics Acquired . | . . . Parts Damaged . | . . . Bothacking | -11 -10 -10 ------------ Run | Yrd Mat Min Used RIF Installer . | . . . Robots Hacked . | . . . Non-combat . | . . . Combat . | . . . Robot Hacks Applied . | . . . Relay Couplers Released . | . . . Fabnet Peak Effective % . | . . . Robots Rewired . | . . . Allies Hacked . | . . . Hacks Repelled . | . . . Allies | -11 -10 -10 -------- Run | Yrd Mat Min Total Allies 1 | . . 1 Largest Group 1 | . . 1 Highest-Rated Group 31 | . . 31 Highest-Rated Ally 31 | . . 31 Total Orders . | . . . Ally Attacks 17 | . . 17 Total Damage 252 | . . 252 Kills 4 | . . 4 Allies Corrupted . | . . . Allies Melted . | . . . Intel | -11 -10 -10 ------- Run | Yrd Mat Min Robot Analysis Total . | . . . Derelict Logs Recovered . | . . . Drone Launches . | . . . Drone Recoveries . | . . . Exploration | -11 -10 -10 ------------- Run | Yrd Mat Min Turns Passed 579 | 92 363 124 Spaces Moved 383 | 70 207 106 Core 20 | 20 . . Treads . | . . . Legs 50 | 18 32 . Wheels 313 | 32 175 106 Hover . | . . . Flight . | . . . Fastest Speed 50 | 50 80 80 Average Speed 86 | 81 86 89 Slowest Speed 120 | 120 120 95 Overloaded Moves . | . . . Propulsion Burnouts . | . . . Robots Hopped . | . . . Cave-ins Triggered . | . . . Exploration Rate (%) 23 | 9 31 30 Regions Visited 2 Branch Regions 1 Pre-discovered Areas . | . . . Known Exits Taken . | . . . Unknown Exits Taken 2 | 1 1 . Scrap Searched . | . . . Spaces Dug . | . . . Terrain Destroyed 160 | . 103 57 Melee . | . . . Projectile . | . . . AOE 160 | . 103 57 Terrain Rammed . | . . . Walls Destroyed . | . . . Machines Disabled . | . . . Actions | -11 -10 -10 --------- Run | Yrd Mat Min Total 588 | 93 375 120 Wait 136 | . 131 5 Move 381 | 69 206 106 Hop . | . . . Pick Up 18 | 8 10 . Fast Attach . | . . . Attach 17 | 7 9 1 Detach 3 | 2 1 . Swap 1 | . 1 . Drop 5 | . 5 . Fire 26 | 7 11 8 Melee . | . . . Ram 1 | . 1 . Kick . | . . . Crush . | . . . Escape Stasis . | . . . Rewire . | . . . Trap . | . . . Miscellaneous . | . . . Route ------- -11/Scrapyard -10/Materials -10/Mines History --------- Turn | Location | Event 2 | -11/Scrapyard | Met Revision 17 58 | -11/Scrapyard | Discovered new exit (range 8) 93 | -11/Scrapyard | Entered Materials 303 | -10/Materials | Build established: Mutant 442 | -10/Materials | Discovered new exit (range 13) 456 | -10/Materials | Entered Mines 458 | -10/Mines | Met a Derelict testing a Signal Generator 542 | -10/Mines | Assembled infested the area 576 | -10/Mines | Core integrity fell below 50% 579 | -10/Mines | Core integrity fell below 20% 580 | -10/Mines | Destroyed by D-53 Grenadier with Mini Grenade Launcher Last Messages --------------- 00555_ as-93462 destroyed. [Achievement: Quick And Dirty] 00559_ as-23338 sneak attacks. 00561_ as-23338 destroyed. 00563_ Lgt. Ion Engine destroyed. 00564_ The unstable cave ceiling collapses. 00566_ as-65267 destroyed. 00566_ as-03249 destroyed. 00566_ as-12547 destroyed. 00572_ U-05 Engineer lays Concrete. 00573_ as-12017 destroyed. 00573_ as-15123 destroyed. 00574_ The unstable cave ceiling collapses. 00574_ U-05 Engineer lays Concrete. 00575_ U-05 Engineer destroyed. 00576_ Wheel destroyed. 00576_ Grenade Launcher destroyed. 00576_ as-99408 destroyed. 00577_ Grenade Launcher destroyed. 00579_ The unstable cave ceiling collapses. Map ----- +----------------------------------------------------+ | ?????????????????????????????????????????????????? | | ?????????????????????????????????????????????????? | | ?????????????????????????????????????????????????? | | ?????????????????????????????????????????????????? | | ?????????????????????????????????????????????????? | | ?????????????????????????????????????????????????? | | ?????????????????????????????????????????????????? | | ?????????????????????????????????????????????????? | | ?????????????????????????????????????????????????? | | ?????????????????????????????????????????????????? | | ?????????????????????????????????????????????????? | | ?????????????????????????????????????????????????? | | ?????????????????????????????????????????????????? | | ?????????????????????????????????????????????????? | | ?????????????????????????????????????????????????? | | ?????????????????????????????????????????????????? | | ?????????????????????????????????????????????????? | | ?????????????????????????????????????????????????? | | ??????????????????????????######?????????????????? | | ?????????????????????????## #?????????????????? | | ??????????????????????#### #??????????????????? | | ???????????????# ????## #??????????????????? | | ???????????????# #### #??????????????????# | | ???????????????# #??????????????????# | | ???????????????# #???####???????????# | | ???????????????## @ #???# ##??????????# | | ????????????????## #??## ##?????????# | | ?????????????????# ## ##????????# | | ????????????????# #???????## | | ????????????????# #??????## | | ????????????????## == ######## | | ?????????????????#### ## dd ## ## | | ????????????????????## ?## | | ?????????????????????# ??# | | ?????????????????????# ??? | | ????????????????????? ??? # ## | | ?????????????????????#???# ##### ## | | ?????????????????????????# ?? ### """ | | ?????????????????????????# #?## """ | | ?????????????????????????# a #####?## "" | | ????????????????????????? ##????## | | ????????????????????????? # #?????# | | ?????????????????????????# ## ?????# | | ??????????????????????????#?## ????# ## | | ?????????????????????????????? ????# ##### | | ?????????????????????????????? #????# ###???# | | ?????????????????????????????? #??????# #??????# | | ??????????????????????????????????????#????????### | | ?????????????????????????????????????????????????? | | ?????????????????????????????????????????????????? | +----------------------------------------------------+ Best States ------------- Heat Dissipation 25 Energy Generation 10 Energy Capacity 125 Matter Stores 293 Matter Capacity 600 Sight Range 16 Terrain Scan Density 10 Evasion (%) 55 Targeting Accuracy 5 Item Schematics ----------------- None Robot Schematics ------------------ None Fabricated ------------ Nothing Alien Tech Used ----------------- None Achievements -------------- Crack Shot Quick And Dirty Challenges ------------ None Game ------ Seed BiomechanicalPhaseGuard Manual? 0 Play Time 00:28:43 Cumulative 1.1 hours Start 2024.06.09 @ 14:58:52 End 2024.06.09 @ 22:34:05 Sessions 5 Manual Loads 0 Difficulty Rogue Special Mode None Game No. 2 Rogue 2 Adventurer 0 Explorer 0 Win Type - Total 0 Types 0/0/0/0/0/0/0/0/0 Lore% 0 Gallery% 1 Achievement% 1 Wizard Run 0 Options --------- Layout 0 ASCII 0 Keyboard 0 Movement Arrows Keybinds 0 Fullscreen 2 Font 18/TerminusBold Map View 76x50 Zoom Use 0% Tactical HUD 1 Map Filters NONE Filters NONE Steam 1 RUN: 7781d9fa-77cc-44d2-be9b-85d4681c7341